bitfinex/quotes_SOLUSD_20241121
["timestamp","ask_amount","ask_price","bid_price","bid_amount"]
[1732182400665,9.38881147,242.5,242.38,4.07315166]
[1732182401346,9.38881147,242.5,242.36,4.86096925]
[1732182402661,23.776884,242.55,242.36,4.86096925]
[1732182402865,23.776884,242.55,242.37,20.0]
[1732182402866,23.776884,242.52,242.37,20.0]
[1732182403051,23.776884,242.52,242.38,4.86096925]
[1732182403374,23.776884,242.52,242.38,8.93412091]
[1732182403591,23.776884,242.52,242.39,20.0]
[1732182403764,23.776884,242.52,242.4,4.07315166]
[1732182404463,8.1339,242.56,242.42,20.0]
[1732182404644,8.1339,242.56,242.43,4.07315166]
[1732182405170,37.55524588,242.64,242.43,4.07315166]
[1732182405171,7.7343,242.63,242.44,24.86096925]
[1732182405373,9.38881147,242.61,242.45,4.07315166]
[1732182405580,9.38881147,242.59,242.45,24.07315166]
[1732182405961,7.7343,242.63,242.45,24.07315166]
[1732182406271,9.38881147,242.59,242.45,24.07315166]
[1732182406568,23.776884,242.62,242.45,24.07315166]
[1732182406773,9.38881147,242.6,242.45,24.07315166]
[1732182408679,9.38881147,242.6,242.44,4.86096925]
[1732182409054,9.38881147,242.56,242.44,4.86096925]
[1732182409589,9.38881147,242.56,242.45,24.07315166]
[1732182410678,9.38881147,242.58,242.45,24.07315166]
[1732182411588,9.38881147,242.56,242.45,24.07315166]
[1732182411765,9.38881147,242.54,242.45,4.07315166]
[1732182414659,9.38881147,242.52,242.45,4.07315166]
[1732182416882,9.38881147,242.52,242.42,20.0]
[1732182417067,9.38881147,242.5,242.42,20.0]
[1732182418870,9.38881147,242.52,242.42,20.0]
[1732182420059,9.38881147,242.5,242.4,4.07315166]
[1732182420372,23.776884,242.49,242.4,4.07315166]
[1732182420567,9.38881147,242.48,242.4,4.07315166]
[1732182420783,9.38881147,242.48,242.37,4.86096925]
[1732182420784,9.38881147,242.48,242.37,24.86096925]
[1732182420967,9.38881147,242.48,242.37,8.93412091]
[1732182422663,9.38881147,242.48,242.38,20.0]
[1732182422991,9.38881147,242.48,242.28,0.5]
[1732182422992,9.38881147,242.4,242.22,29.235039]
[1732182423299,9.38881147,242.4,242.23,4.42763591]
[1732182424664,9.38881147,242.4,242.23,24.42763591]
[1732182426264,9.38881147,242.38,242.23,24.42763591]
[1732182426870,9.38881147,242.38,242.24,20.0]
[1732182427595,9.38881147,242.38,242.23,24.42763591]
[1732182429772,9.38881147,242.38,242.23,20.0]
[1732182429972,9.38881147,242.36,242.23,20.0]
[1732182430975,25.3146,242.37,242.23,20.0]
[1732182430976,9.38881147,242.34,242.23,20.0]
[1732182432894,9.38881147,242.34,242.22,12.7586]
[1732182433063,9.38881147,242.3,242.16,12.1031]
[1732182433265,7.3274,242.27,242.12,3.03629019]
[1732182433472,7.3274,242.27,242.1,16.2271]
[1732182433786,9.38881147,242.26,242.1,16.2271]
[1732182434874,9.38881147,242.24,242.1,16.2271]
[1732182436868,9.38881147,242.24,242.12,4.124]
[1732182438270,9.38881147,242.24,242.08,4.124]
[1732182438782,9.38881147,242.24,242.08,24.124]
[1732182441072,26.3568,242.27,242.06,24.124]
[1732182441073,9.38881147,242.22,242.06,24.124]
[1732182441580,9.38881147,242.22,242.06,20.0]
[1732182441977,23.776884,242.21,242.06,20.0]
[1732182442281,9.38881147,242.2,242.06,20.0]
[1732182442492,7.7355,242.19,242.03,23.03629019]
[1732182442874,9.38881147,242.18,242.03,23.03629019]
[1732182443069,27.89001147,242.18,242.03,3.03629019]
[1732182443293,23.776884,242.17,242.03,3.03629019]
[1732182443495,9.38881147,242.15,241.97,3.03629019]
[1732182443677,33.16569547,242.17,241.97,7.4639261]
[1732182444671,23.776884,242.17,241.97,7.4639261]
[1732182444872,9.38881147,242.16,241.98,23.776884]
[1732182445085,18.5012,242.18,242.0,23.776884]
[1732182445289,18.5012,242.18,242.01,24.42763591]
[1732182445893,18.5012,242.18,242.07,20.0]
[1732182446080,9.38881147,242.17,242.07,20.0]
[1732182446669,9.38881147,242.17,242.01,4.42763591]
[1732182446879,9.38881147,242.17,242.02,20.0]
[1732182447080,9.38881147,242.17,242.0,20.0]
[1732182447874,9.38881147,242.17,241.97,23.776884]
[1732182448572,9.38881147,242.15,241.97,24.276884]
[1732182448778,9.38881147,242.17,241.97,4.42763591]
[1732182448997,7.7356,242.13,241.98,4.42763591]
[1732182449189,7.7356,242.13,241.97,20.0]
[1732182449374,17.12441147,242.13,241.97,20.0]
[1732182449877,17.12441147,242.13,241.96,23.776884]
[1732182450698,18.7748,242.12,241.96,23.776884]
[1732182451374,18.7748,242.12,241.97,20.0]
[1732182453275,31.097784,242.1,241.91,20.0]
[1732182453470,9.38881147,242.07,241.9,7.4639261]
[1732182454502,9.38881147,242.07,241.91,23.776884]
[1732182454698,17.6329,242.08,241.91,23.776884]
[1732182454907,17.6329,242.08,241.95,23.776884]
[1732182455107,17.6329,242.08,241.96,20.0]
[1732182456806,17.6329,242.08,241.97,4.124]
[1732182457003,17.6329,242.08,241.96,20.0]
[1732182460288,17.6329,242.08,241.92,5.54737907]
[1732182460289,17.6329,242.08,241.94,23.776884]
[1732182460480,17.6329,242.08,241.93,23.776884]
[1732182460686,17.6329,242.08,241.94,20.0]
[1732182462109,17.6329,242.08,241.92,4.42763591]
[1732182462319,7.3484,242.07,241.92,4.42763591]
[1732182463185,7.3484,242.07,241.9,3.03629019]
[1732182463391,7.3484,242.07,241.91,23.776884]
[1732182463631,7.3484,242.07,241.92,20.0]
[1732182463905,7.6391,242.05,241.92,20.0]
[1732182464114,7.6391,242.05,241.88,25.12299107]
[1732182464318,7.6391,242.05,241.89,4.42763591]
[1732182464493,7.6391,242.05,241.89,24.42763591]
[1732182465012,7.6391,242.05,241.91,20.0]
[1732182466994,7.6391,242.05,241.89,24.42763591]
[1732182467191,7.6391,242.05,241.89,4.42763591]
[1732182467989,7.6391,242.05,241.91,20.0]
[1732182468199,7.6391,242.05,241.93,20.0]
[1732182468411,7.6391,242.05,241.94,23.776884]
[1732182468613,7.6391,242.05,241.95,20.0]
[1732182468996,7.6391,242.05,241.97,20.0]
[1732182470695,7.6391,242.05,241.92,4.42763591]
[1732182470895,7.6391,242.05,241.94,20.0]
[1732182471505,7.6391,242.05,241.9,23.776884]
[1732182471704,7.6391,242.05,241.93,20.0]
[1732182472600,7.6391,242.05,241.87,20.61975366]
[1732182473011,7.6391,242.05,241.89,20.0]
[1732182473210,7.6391,242.05,241.9,23.776884]
[1732182473587,7.6391,242.05,241.91,20.0]
[1732182473990,7.6391,242.05,241.94,23.776884]
[1732182474189,6.4236,242.05,241.96,23.776884]
[1732182474410,6.4236,242.05,241.97,20.0]
[1732182475291,6.3429,242.05,241.97,20.0]
[1732182475504,6.3429,242.05,241.96,23.776884]
[1732182475505,6.2622,242.05,242.01,20.0]
[1732182475709,19.2033,242.06,242.03,20.0]
[1732182476621,19.2033,242.06,241.98,23.776884]
[1732182476799,19.2033,242.06,241.99,20.0]
[1732182477001,19.2033,242.06,242.01,20.0]
[1732182477702,19.2033,242.06,241.99,20.0]
[1732182478109,19.2033,242.06,242.01,20.0]
[1732182478699,19.2033,242.06,241.99,20.0]
[1732182479022,25.0803,242.31,242.04,0.5]
[1732182479319,7.1696,242.25,242.09,20.0]
[1732182479519,16.55841147,242.25,242.09,20.0]
[1732182479722,9.38881147,242.23,242.09,20.0]
[1732182479911,17.9107,242.21,242.06,23.776884]
[1732182480218,17.9107,242.21,242.07,20.0]
[1732182480519,17.9107,242.21,242.09,20.0]
[1732182481937,17.9107,242.21,242.1,23.776884]
[1732182482111,17.9107,242.21,242.12,23.776884]
[1732182482310,17.9107,242.21,242.15,20.0]
[1732182483624,17.9107,242.21,242.17,20.0]
[1732182484012,0.5,242.41,242.16,23.776884]
[1732182484013,26.0841,242.28,242.2,23.776884]
[1732182484218,26.0841,242.28,242.23,20.0]
[1732182485405,26.0841,242.28,242.18,24.29599656]
[1732182485619,26.0841,242.28,242.22,20.0]
[1732182486159,26.0841,242.28,242.18,23.776884]
[1732182487005,26.0841,242.28,242.2,23.776884]
[1732182487306,26.0841,242.28,242.22,23.776884]
[1732182487505,26.0841,242.28,242.23,20.0]
[1732182488822,95.8,242.48,242.26,23.776884]
[1732182488823,25.7491,242.34,242.26,23.776884]
[1732182489027,25.7491,242.34,242.27,20.0]
[1732182489410,25.7491,242.34,242.29,20.0]
[1732182490015,25.7491,242.34,242.23,4.29599656]
[1732182490207,25.7491,242.34,242.24,23.776884]
[1732182490529,25.7491,242.34,242.25,20.0]
[1732182491931,25.7491,242.34,242.29,20.0]
[1732182493125,25.7491,242.34,242.26,20.0]
[1732182493332,25.7491,242.34,242.19,4.29599656]
[1732182493524,25.7491,242.34,242.19,7.62695342]
[1732182494502,25.7491,242.34,242.2,43.776884]
[1732182495430,40.43092798,242.34,242.2,20.0]
[1732182495634,40.43092798,242.34,242.19,3.33095686]
[1732182496629,14.68182798,242.32,242.14,3.33095686]
[1732182496833,14.68182798,242.32,242.15,23.776884]
[1732182497035,14.68182798,242.32,242.14,3.33095686]
[1732182497412,7.4394,242.29,242.14,3.33095686]
[1732182498215,7.4394,242.29,242.14,23.33095686]
[1732182498534,7.4394,242.29,242.14,3.33095686]
[1732182500919,7.4394,242.29,242.14,23.776884]
[1732182501236,7.4394,242.29,242.14,20.0]
[1732182501632,19.3357,242.27,242.14,20.0]
[1732182501840,21.81232798,242.26,242.13,20.0]
[1732182502432,21.81232798,242.26,242.12,23.776884]
[1732182503038,17.5728,242.25,242.11,3.33095686]
[1732182503338,14.68182798,242.24,242.11,3.33095686]
[1732182503517,24.6703,242.23,242.11,3.33095686]
[1732182503720,24.6703,242.23,242.07,20.0]
[1732182504438,24.6703,242.23,242.07,3.33095686]
[1732182504621,24.6703,242.23,242.07,23.33095686]
[1732182505032,24.6703,242.23,242.09,20.0]
[1732182505744,24.6703,242.23,242.1,23.776884]
[1732182506041,24.6703,242.23,242.1,28.07288056]
[1732182506842,24.6703,242.23,242.1,36.50475084]
[1732182507019,24.6703,242.23,242.12,23.776884]
[1732182507421,24.6703,242.23,242.13,23.776884]
[1732182507620,24.6703,242.23,242.14,20.0]
[1732182507843,24.6703,242.23,242.16,20.0]
[1732182508032,24.6703,242.23,242.17,23.776884]
[1732182508218,24.6703,242.23,242.19,23.776884]
[1732182508424,24.6703,242.23,242.2,20.0]
[1732182511741,24.6703,242.23,242.14,3.33095686]
[1732182512042,24.6703,242.23,242.15,23.776884]
[1732182514547,24.6703,242.23,242.16,20.0]
[1732182514745,24.6703,242.23,242.14,3.33095686]
[1732182515123,24.6703,242.23,242.09,23.776884]
[1732182515333,24.6703,242.23,242.09,3.33095686]
[1732182515551,14.68182798,242.22,242.09,3.33095686]
[1732182518352,24.6703,242.23,242.09,3.33095686]
[1732182521853,24.6703,242.23,242.1,20.0]
[1732182522443,24.6703,242.23,242.09,3.33095686]
[1732182523030,22.6365825,242.23,242.09,3.33095686]
[1732182524159,22.6365825,242.23,242.09,20.0]
[1732182526354,22.6365825,242.23,242.12,23.776884]
[1732182526656,22.6365825,242.23,242.13,20.0]
[1732182539165,22.6365825,242.23,242.08,3.33095686]
[1732182539166,19.1598,242.21,242.08,3.33095686]
[1732182540646,28.56574414,242.21,242.08,3.33095686]
[1732182542853,37.62377656,242.28,242.04,20.0]
[1732182542854,25.3649,242.18,242.04,20.0]
[1732182543059,9.40594414,242.17,242.04,20.0]
[1732182545374,25.3649,242.18,242.07,23.776884]
[1732182545666,25.3649,242.18,242.08,20.0]
[1732182548847,25.3649,242.18,242.05,20.0]
[1732182549047,25.3649,242.18,242.07,20.0]
[1732182549251,9.40594414,242.17,242.04,3.33095686]
[1732182549476,9.40594414,242.13,241.99,4.124]
[1732182549651,9.40594414,242.13,241.99,7.45495686]
[1732182550557,9.40594414,242.13,242.0,20.0]
[1732182550756,25.3821,242.14,242.0,20.0]
[1732182551582,25.3821,242.14,242.02,20.0]
[1732182555173,9.40594414,242.06,241.99,3.33095686]
[1732182555378,35.48124414,242.08,241.93,3.33095686]
[1732182555875,26.0753,242.08,241.93,3.33095686]
[1732182556275,35.48124414,242.08,241.93,3.33095686]
[1732182556965,35.48124414,242.08,241.94,20.0]
[1732182557562,35.48124414,242.08,241.93,3.33095686]
[1732182559663,26.0753,242.08,241.93,3.33095686]
[1732182561464,26.0753,242.08,241.94,43.776884]
[1732182561682,26.0753,242.08,241.98,23.776884]
[1732182561890,26.0753,242.08,241.99,20.0]
[1732182563780,26.0753,242.08,241.97,20.0]
[1732182570866,26.0753,242.08,241.99,20.0]
[1732182571683,26.0753,242.08,242.0,23.776884]
[1732182571895,26.0753,242.08,242.01,20.0]
[1732182572103,26.0753,242.08,242.02,23.776884]
[1732182572272,7.3934,242.08,242.05,20.0]
[1732182572682,7.1754,242.13,242.05,20.0]
[1732182575599,7.1754,242.13,242.03,23.776884]
[1732182575774,7.1754,242.13,242.02,4.29599656]
[1732182576306,7.1754,242.13,242.03,23.776884]
[1732182576895,7.1754,242.13,242.04,24.124]
[1732182577890,7.1754,242.13,242.06,20.0]
[1732182578093,7.1754,242.13,242.08,20.0]
[1732182578708,7.1754,242.13,242.05,23.776884]
[1732182578884,7.1754,242.13,242.04,4.124]
[1732182579075,7.1754,242.13,242.03,20.0]
[1732182584683,7.1754,242.13,242.02,8.89690998]
[1732182584884,7.1754,242.13,242.0,3.33095686]
[1732182585088,7.1754,242.13,241.97,4.124]
[1732182585401,7.1754,242.13,241.97,7.45495686]
[1732182586103,7.1754,242.13,241.98,20.0]
[1732182586883,7.1754,242.13,241.99,4.124]
[1732182589403,7.1754,242.13,242.02,20.0]
[1732182590686,7.1754,242.13,241.98,43.776884]
[1732182592507,18.6289,242.12,241.98,43.776884]
[1732182593814,18.4585,242.1,241.97,20.0]
[1732182593988,18.4585,242.1,241.96,23.33095686]
[1732182594588,18.4585,242.1,241.97,24.124]
[1732182595003,18.4585,242.1,241.99,20.0]
[1732182595803,18.4585,242.1,241.96,23.33095686]
[1732182596006,6.9722,242.09,241.96,3.33095686]
[1732182596505,18.843,242.08,241.93,4.45199656]
[1732182596718,18.843,242.08,241.93,8.57599656]
[1732182597598,18.843,242.08,241.95,20.0]
[1732182598916,18.843,242.08,241.95,24.124]
[1732182600395,18.843,242.08,241.95,20.0]
[1732182600995,6.9053,242.07,241.95,20.0]
[1732182601612,18.2273,242.06,241.93,20.0]
[1732182601786,6.979,242.05,241.92,3.33095686]
[1732182601991,7.4589,242.03,241.92,3.33095686]
[1732182603992,133.92377656,242.16,241.87,4.45199656]
[1732182603993,7.3834,242.01,241.89,20.0]
[1732182604193,7.3834,242.01,241.87,5.07186735]
[1732182604409,7.3834,242.01,241.88,4.45199656]
[1732182604789,7.2134,242.01,241.88,4.45199656]
[1732182605594,7.2134,242.01,241.88,24.45199656]
[1732182605917,7.2134,242.01,241.89,20.61984972]
[1732182607714,17.1872,242.0,241.89,20.61984972]
[1732182610795,17.1872,242.0,241.88,4.45199656]
[1732182610796,17.1872,242.0,241.88,24.45199656]
[1732182611720,17.1872,242.0,241.88,4.45199656]
[1732182613517,17.0001,242.0,241.89,43.776884]
[1732182613756,16.9377,242.0,241.9,0.61978171]
[1732182613899,16.9065,242.0,241.92,20.0]
[1732182614099,16.9065,242.0,241.93,3.95065651]
[1732182615725,16.9065,242.0,241.93,0.61969965]
[1732182629207,16.9065,242.0,241.93,23.776884]
[1732182629413,16.9065,242.0,241.94,20.0]
[1732182638838,16.9065,242.0,241.9,24.45199656]
[1732182639023,16.9065,242.0,241.9,4.45199656]
[1732182639219,16.9065,242.0,241.91,23.776884]
[1732182639713,16.9065,242.0,241.93,23.776884]
[1732182640125,16.9065,242.0,241.92,23.776884]
[1732182640518,16.9065,242.0,241.93,20.0]
[1732182641939,16.9065,242.0,241.94,4.124]
[1732182642438,16.9065,242.0,241.92,3.46739131]
[1732182646029,16.9065,242.0,241.89,20.0]
[1732182647120,16.9065,242.0,241.88,20.0]
[1732182647325,16.9065,242.0,241.89,20.0]
[1732182647733,6.9265,241.99,241.89,20.0]
[1732182648023,6.9265,241.99,241.88,20.0]
[1732182651027,6.9265,241.99,241.87,3.46739131]
[1732182651543,17.4987,241.98,241.87,3.46739131]
[1732182654246,17.8622,241.96,241.87,3.46739131]
[1732182654441,7.5028,241.95,241.81,9.92765073]
[1732182654834,7.5028,241.95,241.82,9.05290998]
[1732182655020,7.3731,241.95,241.82,9.6729464]
[1732182655221,7.3731,241.95,241.82,13.14033771]
[1732182655421,7.2434,241.95,241.82,13.14033771]
[1732182655644,7.2434,241.95,241.82,17.26433771]
[1732182655836,7.2434,241.95,241.83,23.776884]
[1732182657750,7.2434,241.95,241.84,4.74397563]
[1732182658052,7.2434,241.95,241.85,23.776884]
[1732182661036,7.2434,241.95,241.87,23.776884]
[1732182661235,17.8622,241.96,241.89,23.776884]
[1732182661435,17.8622,241.96,241.91,23.776884]
[1732182662553,17.8622,241.96,241.9,23.776884]
[1732182665651,17.8622,241.96,241.9,27.900884]
[1732182666646,17.8622,241.96,241.9,23.776884]
[1732182666841,17.8622,241.96,241.85,4.45199656]
[1732182667046,17.8622,241.96,241.86,8.68818481]
[1732182667253,17.8622,241.96,241.87,4.45199656]
[1732182667544,7.43,241.99,241.89,4.624]
[1732182667752,7.43,241.99,241.9,13.13998766]
[1732182668151,7.43,241.99,241.91,23.776884]
[1732182668333,7.43,241.99,241.91,27.24427531]
[1732182668657,7.43,241.99,241.93,23.776884]
[1732182669537,7.43,241.99,241.92,23.776884]
[1732182670754,7.43,241.99,241.92,27.900884]
[1732182673934,7.43,241.99,241.94,27.900884]
[1732182674129,7.43,241.99,241.95,23.776884]
[1732182674953,7.43,241.99,241.93,23.776884]
[1732182675960,7.43,241.99,241.93,4.124]
[1732182676159,7.43,241.99,241.94,27.900884]
[1732182676661,7.43,241.99,241.94,4.124]
[1732182677153,7.43,241.99,241.95,23.776884]
[1732182677759,7.43,241.99,241.93,23.776884]
[1732182678151,7.43,241.99,241.92,23.776884]
[1732182678838,7.43,241.99,241.92,27.24427531]
[1732182679434,7.43,241.99,241.93,3.71215242]
[1732182679659,7.43,241.99,241.94,23.776884]
[1732182680659,7.43,241.99,241.93,3.71215242]
[1732182680841,18.8522,241.98,241.87,6.46025942]
[1732182681153,18.8522,241.98,241.88,3.71215242]
[1732182681560,18.8522,241.98,241.87,6.46025942]
[1732182682353,18.8522,241.98,241.85,6.46025942]
[1732182682562,18.8522,241.98,241.84,10.58425942]
[1732182682938,18.8522,241.98,241.85,23.776884]
[1732182683455,18.8522,241.98,241.87,23.776884]
[1732182683753,18.8522,241.98,241.87,3.71215242]
[1732182684162,0.5,242.11,241.87,3.71215242]
[1732182684163,18.3255,241.96,241.87,3.71215242]
[1732182684366,18.3255,241.94,241.81,6.46025942]
[1732182685357,7.5711,241.93,241.8,3.71215242]
[1732182685664,18.3255,241.92,241.8,3.71215242]
[1732182686467,18.3255,241.92,241.81,23.776884]
[1732182691664,18.0911,241.9,241.81,23.776884]
[1732182693466,18.0911,241.9,241.81,27.48903642]
[1732182694058,17.9689,241.9,241.82,3.71215242]
[1732182694270,17.9078,241.9,241.82,3.71215242]
[1732182696167,7.0736,241.89,241.82,3.71215242]
[1732182696370,7.0736,241.89,241.74,4.60073287]
[1732182696552,7.0736,241.89,241.76,3.71215242]
[1732182697161,18.4899,241.88,241.76,3.71215242]
[1732182697973,18.4899,241.88,241.77,23.776884]
[1732182699173,18.4899,241.88,241.78,23.776884]
[1732182701958,9.40594414,241.92,241.77,3.71215242]
[1732182701959,9.40594414,241.86,241.77,3.71215242]
[1732182702159,9.40594414,241.85,241.71,7.83615242]
[1732182702373,17.61,241.83,241.71,3.71215242]
[1732182702577,27.01594414,241.83,241.71,3.71215242]
[1732182702781,17.61,241.83,241.71,3.71215242]
[1732182703970,18.5458,241.81,241.72,23.776884]
[1732182704771,27.95174414,241.81,241.71,3.71215242]
[1732182705072,18.8227,241.8,241.71,3.71215242]
[1732182705767,18.8363,241.78,241.71,3.71215242]
[1732182705967,18.8363,241.78,241.67,23.776884]
[1732182708281,18.8363,241.78,241.68,3.94331409]
[1732182708465,18.8363,241.78,241.69,23.776884]
[1732182709960,18.8363,241.78,241.7,4.75496156]
[1732182710881,18.6497,241.76,241.68,3.94331409]
[1732182715470,18.6497,241.76,241.69,23.776884]
[1732182715682,18.6497,241.76,241.69,4.16163465]
[1732182720777,18.1825,241.76,241.67,23.776884]
[1732182720993,7.2885,241.87,241.7,0.5]
[1732182721194,7.2885,241.87,241.72,23.776884]
[1732182721378,7.2885,241.87,241.72,37.89258634]
[1732182721581,7.2885,241.87,241.74,23.776884]
[1732182721978,7.2885,241.87,241.74,28.57339712]
[1732182722783,7.2885,241.87,241.76,23.776884]
[1732182722993,7.2885,241.87,241.78,23.776884]
[1732182723179,7.2885,241.87,241.79,4.34482918]
[1732182724001,18.1423,241.86,241.79,4.34482918]
[1732182730603,7.4322,241.85,241.74,4.79651312]
[1732182730773,7.4322,241.85,241.74,9.1413423]
[1732182730977,7.4322,241.85,241.75,4.34482918]
[1732182732778,7.4322,241.85,241.75,9.5400184]
[1732182732979,7.4322,241.85,241.75,14.33653152]
[1732182733296,7.4322,241.85,241.76,5.19518922]
[1732182733499,7.4322,241.85,241.77,28.12171318]
[1732182733697,7.4322,241.85,241.77,38.11341552]
[1732182733901,7.4322,241.85,241.79,23.776884]
[1732182734092,7.4322,241.85,241.8,9.5400184]
[1732182734286,7.4322,241.85,241.81,23.776884]
[1732182735773,7.4322,241.85,241.8,5.19518922]
[1732182736304,7.4322,241.85,241.79,4.79651312]
[1732182736802,7.4322,241.85,241.8,28.97207322]
[1732182737308,7.4322,241.85,241.81,4.79651312]
[1732182738086,7.4322,241.85,241.82,4.34482918]
[1732182738805,18.1423,241.86,241.82,4.34482918]
[1732182739305,7.4181,241.9,241.83,23.776884]
[1732182739487,7.4181,241.9,241.85,23.776884]
[1732182739694,7.4181,241.9,241.86,4.34482918]
[1732182739882,18.9721,241.91,241.87,23.776884]
[1732182740087,7.4181,241.97,241.88,4.34482918]
[1732182740387,7.4181,241.97,241.89,23.776884]
[1732182740695,7.4181,241.97,241.91,23.776884]
[1732182740895,7.4181,241.97,241.92,4.34482918]
[1732182741089,18.2488,241.98,241.93,23.776884]
[1732182741287,18.2488,241.98,241.94,4.34482918]
[1732182743088,18.2488,241.98,241.95,23.776884]
[1732182743383,18.2488,241.98,241.96,4.34482918]
[1732182743608,18.2488,241.98,241.93,23.776884]
[1732182744192,18.2488,241.98,241.91,23.776884]
[1732182746503,18.2488,241.98,241.92,4.34482918]
[1732182748393,18.2488,241.98,241.92,9.5400184]
[1732182749704,7.3879,242.03,241.93,33.98525301]
[1732182749905,7.3879,242.03,241.95,23.776884]
[1732182750205,7.3879,242.03,241.97,23.776884]
[1732182750399,7.3879,242.03,241.98,4.34482918]
[1732182752714,25.9558,242.03,241.98,4.34482918]
[1732182755703,25.9558,242.03,241.99,5.01317979]
[1732182756021,25.9558,242.03,242.0,5.19518922]
[1732182756223,25.9558,242.03,242.01,5.01317979]
[1732182757307,25.5933,242.13,242.02,23.776884]
[1732182757619,25.5933,242.13,242.02,10.20836901]
[1732182758920,25.5933,242.13,242.03,4.34482918]
[1732182760528,25.5933,242.13,242.03,9.35800897]
[1732182760711,25.5933,242.13,242.04,5.19518922]
[1732182760901,25.5933,242.13,242.05,4.34482918]
[1732182764727,25.5933,242.13,242.03,5.01317979]
[1732182765107,25.5933,242.13,242.04,4.34482918]
[1732182766211,25.5933,242.13,242.05,5.01317979]
[1732182766401,25.5933,242.13,242.06,4.34482918]
[1732182767707,34.99924414,242.13,242.06,4.34482918]
[1732182770231,9.40594414,242.11,242.06,4.34482918]
[1732182770528,9.40594414,242.11,242.01,5.01317979]
[1732182771604,9.40594414,242.09,242.01,5.01317979]
[1732182772220,9.40594414,242.09,242.01,9.35800897]
[1732182773408,9.40594414,242.11,242.01,9.35800897]
[1732182775020,25.5933,242.13,242.01,9.35800897]
[1732182775021,34.99924414,242.13,242.01,9.35800897]
[1732182775224,34.99924414,242.13,242.01,14.55319819]
[1732182776102,9.40594414,242.11,242.01,14.55319819]
[1732182776305,25.5933,242.13,242.01,14.55319819]
[1732182776510,9.40594414,242.12,242.01,14.55319819]
[1732182778907,9.40594414,242.12,242.01,9.35800897]
[1732182779108,25.5933,242.13,242.01,14.55319819]
[1732182779310,25.5933,242.13,242.02,9.5400184]
[1732182779520,25.5933,242.13,242.03,5.01317979]
[1732182779723,25.5933,242.13,242.03,14.55319819]
[1732182780122,25.5933,242.13,242.03,10.20836901]
[1732182781632,25.5933,242.13,242.03,5.01317979]
[1732182782128,25.5933,242.13,242.03,9.35800897]
[1732182783032,25.5933,242.13,242.03,4.34482918]
[1732182783235,25.5933,242.13,241.98,10.20836901]
[1732182783410,25.5933,242.13,241.99,4.34482918]
[1732182784032,25.5933,242.13,241.99,14.55319819]
[1732182784235,25.6004,242.18,242.0,33.98525301]
[1732182784530,9.40594414,242.17,242.02,23.776884]
[1732182784722,9.40594414,242.17,242.03,14.55319819]
[1732182786364,25.6004,242.18,242.03,14.55319819]
[1732182786365,95.8,242.22,242.05,23.776884]
[1732182786634,9.90594414,242.24,242.07,23.776884]
[1732182786821,9.90594414,242.24,242.08,14.55319819]
[1732182788037,0.5,242.21,242.08,14.55319819]
[1732182788237,9.40594414,242.23,242.08,14.55319819]
[1732182788437,0.5,242.24,242.09,23.776884]
[1732182788739,0.5,242.24,242.1,14.55319819]
[1732182788938,5.195189,242.28,242.11,41.589684]
[1732182789141,25.5451,242.31,242.13,30.909884]
[1732182789318,6.97158967,242.42,242.13,30.909884]
[1732182789319,26.6385,242.37,242.14,10.20836901]
[1732182789641,9.40594414,242.36,242.17,27.900884]
[1732182789841,9.40594414,242.36,242.18,38.33008219]
[1732182790140,9.90594414,242.36,242.18,38.33008219]
[1732182790339,26.6385,242.37,242.2,23.776884]
[1732182790538,26.6385,242.37,242.22,23.776884]
[1732182790743,9.40594414,242.42,242.24,23.776884]
[1732182790922,9.40594414,242.42,242.25,14.81319819]
[1732182791119,9.40594414,242.39,242.25,14.81319819]
[1732182792121,9.40594414,242.39,242.25,10.46836901]
[1732182792332,9.40594414,242.36,242.25,5.01317979]